bitfinex/quotes_BTCUSD_20241206
["timestamp","ask_amount","ask_price","bid_price","bid_amount"]
[1733457871024,0.00059466,97780.0,97769.0,0.00017428]
[1733457871025,0.204542,97779.0,97778.0,0.0274477]
[1733457872364,0.00059466,97780.0,97774.0,0.0274477]
[1733457872594,0.204545,97778.0,97772.0,0.0274477]
[1733457874999,0.204545,97778.0,97769.0,0.00017428]
[1733457875241,0.204556,97773.0,97771.0,0.0274477]
[1733457875473,0.204559,97771.0,97769.0,0.00017428]
[1733457875686,0.10503154,97770.0,97769.0,0.00017428]
[1733457878281,0.18353154,97770.0,97769.0,0.00017428]
[1733457879631,0.48353154,97770.0,97769.0,0.00017428]
[1733457880061,0.18353154,97770.0,97769.0,0.00017428]
[1733457880293,0.10503154,97770.0,97769.0,0.00017428]
[1733457881864,0.204559,97771.0,97769.0,0.00017428]
[1733457882095,0.204556,97773.0,97769.0,0.02762198]
[1733457882324,0.409112,97773.0,97769.0,0.02762198]
[1733457883659,0.204556,97773.0,97769.0,0.02762198]
[1733457883923,0.204548,97777.0,97769.0,0.02762198]
[1733457884146,0.204551,97775.0,97769.0,0.02762198]
[1733457884375,0.10503154,97774.0,97769.0,0.02762198]
[1733457884599,0.204561,97770.0,97769.0,0.02762198]
[1733457885722,0.20254624,97770.0,97769.0,0.02762198]
[1733457888116,0.204555,97773.0,97769.0,0.02762198]
[1733457888534,0.40911,97773.0,97769.0,0.02762198]
[1733457888771,0.40911,97773.0,97769.0,0.00017428]
[1733457888984,0.204555,97773.0,97769.0,0.10332198]
[1733457890715,0.204559,97771.0,97769.0,0.10332198]
[1733457891153,0.204559,97771.0,97769.0,0.02762198]
[1733457893161,0.10503154,97770.0,97769.0,0.00017428]
[1733457893375,0.18393154,97770.0,97769.0,0.00017428]
[1733457897380,0.39323609,97770.0,97769.0,0.00017428]
[1733457897599,0.48483363,97770.0,97769.0,0.00017428]
[1733457897834,0.33393154,97770.0,97769.0,0.00017428]
[1733457898050,0.89318144,97770.0,97769.0,2.8e-07]
[1733457898488,0.70998636,97770.0,97769.0,2.8e-07]
[1733457898927,0.70998636,97770.0,97760.0,0.0017294]
[1733457898928,0.6060323,97761.0,97760.0,6.8e-07]
[1733457899157,1.42033075,97761.0,97760.0,6.8e-07]
[1733457899367,1.268969,97761.0,97760.0,6.8e-07]
[1733457899591,1.23711866,97761.0,97760.0,6.8e-07]
[1733457899820,1.26896936,97761.0,97760.0,6.8e-07]
[1733457900046,1.10483306,97761.0,97760.0,6.8e-07]
[1733457900495,1.68385096,97761.0,97760.0,6.8e-07]
[1733457900700,1.45483225,97761.0,97760.0,6.8e-07]
[1733457901792,1.34993733,97761.0,97760.0,6.8e-07]
[1733457902455,1.5787595,97761.0,97760.0,6.8e-07]
[1733457902897,1.5797595,97761.0,97760.0,6.8e-07]
[1733457903326,1.35093733,97761.0,97760.0,6.8e-07]
[1733457903749,0.654622,97741.0,97740.0,0.00173]
[1733457903951,0.85335354,97741.0,97740.0,0.00173]
[1733457904606,0.2271893,97734.0,97733.0,0.00608022]
[1733457904829,0.60966854,97734.0,97733.0,0.00608022]
[1733457905044,0.30966854,97734.0,97733.0,0.00608022]
[1733457905520,0.10503154,97734.0,97733.0,0.00608022]
[1733457905738,0.3,97752.0,97745.0,0.0274477]
[1733457905944,0.3,97752.0,97748.0,0.0274477]
[1733457905945,0.204604,97750.0,97748.0,0.0274477]
[1733457906194,0.204619,97743.0,97742.0,0.0274477]
[1733457906633,0.10503154,97749.0,97742.0,0.0274477]
[1733457906845,0.204616,97744.0,97742.0,0.0274477]
[1733457907275,0.204632,97736.0,97735.0,0.0467]
[1733457907513,0.204632,97736.0,97734.0,0.0274477]
[1733457908168,0.10503154,97743.0,97734.0,0.0274477]
[1733457908605,0.204608,97748.0,97742.0,0.0274477]
[1733457908818,0.0008647,97770.0,97748.0,0.1089477]
[1733457909046,0.204582,97761.0,97754.0,0.0274477]
[1733457909264,0.204584,97759.0,97754.0,0.0274477]
[1733457909506,0.10503154,97758.0,97754.0,0.0274477]
[1733457909708,0.10503154,97758.0,97748.0,0.0815]
[1733457909709,0.10920368,97770.0,97749.0,0.0274477]
[1733457909924,0.204597,97753.0,97748.0,0.0815]
[1733457910157,0.204618,97743.0,97739.0,0.0815]
[1733457910366,0.204622,97741.0,97739.0,0.0815]
[1733457910575,0.30965354,97741.0,97739.0,0.0815]
[1733457911674,0.51427754,97741.0,97737.0,0.0741477]
[1733457911892,0.30965354,97741.0,97737.0,0.0741477]
[1733457912342,0.51427754,97741.0,97737.0,0.0741477]
[1733457912566,0.51427754,97741.0,97737.0,0.0467]
[1733457912795,0.204637,97734.0,97730.0,0.00173]
[1733457913458,0.30966854,97734.0,97730.0,0.00173]
[1733457918010,0.10503154,97734.0,97730.0,0.00173]
[1733457918647,0.30966854,97734.0,97730.0,0.00173]
[1733457918855,0.10503154,97734.0,97730.0,0.00173]
[1733457924257,0.27758384,97734.0,97730.0,0.00173]
[1733457924470,0.35508384,97734.0,97730.0,0.00173]
[1733457925099,0.68307581,97734.0,97730.0,0.00173]
[1733457925315,0.35508384,97734.0,97730.0,0.00173]
[1733457925786,0.3752704,97734.0,97730.0,0.00173]
[1733457927128,0.46679492,97734.0,97730.0,0.00173]
[1733457927347,0.3752704,97734.0,97730.0,0.00173]
[1733457927974,0.46679367,97734.0,97730.0,0.00173]
[1733457928187,0.57168859,97734.0,97730.0,0.00173]
[1733457929063,0.48016532,97734.0,97730.0,0.00173]
[1733457932239,0.46676496,97734.0,97730.0,0.00173]
[1733457932692,0.3752704,97734.0,97730.0,0.00173]
[1733457933367,0.46676495,97734.0,97730.0,0.00173]
[1733457933576,0.3752704,97734.0,97730.0,0.00173]
[1733457933789,0.46675883,97734.0,97730.0,0.00173]
[1733457934633,0.3752704,97734.0,97730.0,0.00173]
[1733457936815,0.46675883,97734.0,97730.0,0.00173]
[1733457937259,0.51249953,97734.0,97730.0,0.00173]
[1733457937471,0.512569,97734.0,97730.0,0.00173]
[1733457937710,0.61746392,97734.0,97730.0,0.00173]
[1733457937922,0.48016532,97734.0,97730.0,0.00173]
[1733457938142,0.07255149,97731.0,97730.0,7.6e-07]
[1733457938350,0.72721549,97721.0,97720.0,9.6e-07]
[1733457938567,1.54644816,97721.0,97720.0,8.9e-07]
[1733457938773,1.45582638,97721.0,97720.0,8.9e-07]
[1733457939204,1.35093146,97721.0,97720.0,8.9e-07]
[1733457940492,1.35093146,97721.0,97710.0,4.9e-07]
[1733457940493,0.6772373,97711.0,97710.0,4.9e-07]
[1733457940697,1.18725905,97711.0,97710.0,2.3e-07]
[1733457940904,1.59271783,97711.0,97710.0,2.3e-07]
[1733457941323,1.36382137,97711.0,97710.0,2.3e-07]
[1733457941549,1.59270325,97711.0,97710.0,2.3e-07]
[1733457942197,1.36382137,97711.0,97710.0,2.3e-07]
[1733457942396,1.59268955,97711.0,97710.0,2.3e-07]
[1733457943136,1.16195824,97711.0,97710.0,2.3e-07]
[1733457943857,0.96957682,97711.0,97710.0,2.3e-07]
[1733457944143,0.83226803,97711.0,97710.0,2.3e-07]
[1733457944515,0.85244749,97711.0,97710.0,2.3e-07]
[1733457944771,0.779896,97711.0,97710.0,2.3e-07]
[1733457944931,0.8024483,97711.0,97710.0,2.3e-07]
[1733457945124,0.779896,97711.0,97710.0,2.3e-07]
[1733457948832,0.84002516,97711.0,97710.0,2.3e-07]
[1733457950616,0.779896,97711.0,97710.0,2.3e-07]
[1733457952483,0.85244749,97711.0,97710.0,2.3e-07]
[1733457952692,1.02304046,97711.0,97710.0,2.3e-07]
[1733457952972,1.42975582,97711.0,97710.0,2.3e-07]
[1733457953287,1.24679384,97711.0,97710.0,2.3e-07]
[1733457953489,0.57725749,97701.0,97700.0,0.0017308]
[1733457953686,0.83228903,97701.0,97700.0,0.0017308]
[1733457954129,0.92378821,97701.0,97700.0,0.0017308]
[1733457954345,0.83228903,97701.0,97700.0,0.0017308]
[1733457955523,0.92378821,97701.0,97700.0,0.0017308]
[1733457955751,0.83228903,97701.0,97700.0,0.0017308]
[1733457955958,0.78228984,97701.0,97700.0,0.0017308]
[1733457956180,0.83228903,97701.0,97700.0,0.0017308]
[1733457956792,0.92378821,97701.0,97700.0,0.0017308]
[1733457957985,0.92378821,97701.0,97700.0,8e-07]
[1733457957986,0.92381712,97701.0,97700.0,8e-07]
[1733457958191,1.01548395,97701.0,97700.0,8e-07]
[1733457958393,0.91058903,97701.0,97700.0,8e-07]
[1733457958829,1.27266208,97701.0,97700.0,8e-07]
[1733457959875,1.45566045,97701.0,97700.0,8e-07]
[1733457960082,1.48903193,97701.0,97700.0,8e-07]
[1733457960290,1.48903193,97701.0,97664.0,0.0761]
[1733457960291,0.504748,97681.0,97664.0,0.0761]
[1733457960478,0.60977954,97681.0,97680.0,0.00178886]
[1733457962615,0.63070987,97681.0,97680.0,0.00178886]
[1733457963971,0.65326217,97681.0,97680.0,0.00178886]
[1733457966193,0.63070987,97681.0,97680.0,0.00178886]
[1733457966569,0.10503154,97681.0,97680.0,0.12488886]
[1733457966770,0.204736,97687.0,97685.0,0.0274477]
[1733457966982,0.13729828,97708.0,97685.0,0.0274477]
[1733457966983,0.09153219,97711.0,97686.0,0.0761]
[1733457967192,0.204712,97698.0,97696.0,0.047]
[1733457967398,0.10503154,97697.0,97696.0,0.047]
[1733457969142,0.204748,97681.0,97680.0,0.00178886]
[1733457969349,0.30977954,97681.0,97680.0,0.00178886]
[1733457969550,0.3,97693.0,97680.0,0.00178886]
[1733457969551,0.3,97693.0,97680.0,0.02923656]
[1733457969758,0.3,97693.0,97683.0,0.1231]
[1733457969759,0.204736,97687.0,97683.0,0.1231]
[1733457969950,0.10503154,97686.0,97683.0,0.1231]
[1733457970478,0.204739,97685.0,97683.0,0.1231]
[1733457970718,0.204739,97685.0,97684.0,0.0274477]
[1733457970929,0.204739,97685.0,97683.0,0.1231]
[1733457971143,0.30977054,97685.0,97683.0,0.1231]
[1733457971318,0.10503154,97684.0,97683.0,0.1231]
[1733457973516,0.17695499,97684.0,97683.0,0.1231]
[1733457973742,0.17695499,97684.0,97683.0,0.047]
[1733457974158,0.17695499,97684.0,97680.0,0.00178886]
[1733457974159,0.3,97681.0,97680.0,0.00178886]
[1733457974361,0.40503154,97681.0,97680.0,0.00178886]
[1733457979962,0.40503154,97681.0,97680.0,8.6e-07]
[1733457979963,0.25503154,97681.0,97680.0,8.6e-07]
[1733457980211,0.24255736,97681.0,97680.0,0.12120086]
[1733457980420,0.20472,97694.0,97680.0,0.12120086]
[1733457980645,0.10503154,97693.0,97681.0,0.0762]
[1733457980870,0.204726,97692.0,97681.0,0.0762]
[1733457981094,0.10503154,97691.0,97681.0,0.0762]
[1733457981313,0.30975954,97691.0,97681.0,0.0762]
[1733457981757,0.10503154,97691.0,97682.0,0.102373]
[1733457981968,0.10503154,97691.0,97684.0,0.0762]
[1733457982416,0.204698,97705.0,97680.0,8.6e-07]
[1733457982417,0.204698,97705.0,97686.0,0.178568]
[1733457982699,0.204696,97706.0,97691.0,0.1212]
[1733457982700,0.204702,97703.0,97691.0,0.1212]
[1733457982917,0.10503154,97702.0,97692.0,0.0762]
[1733457984002,0.24434387,97702.0,97692.0,0.0762]
[1733457984213,0.21337052,97702.0,97692.0,0.0762]
[1733457984444,0.409436,97696.0,97692.0,0.0762]
[1733457984648,0.20472,97694.0,97692.0,0.0762]
[1733457984855,0.10503154,97693.0,97692.0,0.0762]
[1733457985541,0.204708,97700.0,97692.0,0.0762]
[1733457985542,0.204709,97700.0,97692.0,0.0762]
[1733457985743,0.204704,97702.0,97692.0,0.0762]
[1733457985744,0.10503154,97699.0,97692.0,0.0762]
[1733457986411,0.204712,97698.0,97692.0,0.0762]
[1733457987761,0.409424,97698.0,97692.0,0.0762]
[1733457992072,0.409432,97696.0,97692.0,0.0762]
[1733457992284,0.20472,97694.0,97692.0,0.0762]
[1733457992517,0.10503154,97693.0,97692.0,0.0762]
[1733457992957,0.204746,97682.0,97681.0,0.1289]
[1733457993167,0.30977754,97682.0,97681.0,0.1289]
[1733457995539,0.30977754,97682.0,97680.0,0.00173186]
[1733457995744,0.10503154,97681.0,97680.0,0.00173186]
[1733458002051,0.26515674,97681.0,97680.0,0.00173186]
[1733458002252,0.69049428,97681.0,97680.0,0.00173186]
[1733458002410,0.70292138,97681.0,97680.0,0.00173186]
[1733458002619,0.88631254,97681.0,97680.0,0.00173186]
[1733458004264,0.88636311,97681.0,97680.0,0.00173186]
[1733458004483,0.8863528,97681.0,97680.0,0.00173186]
[1733458005133,0.8863528,97681.0,97673.0,0.20104073]
[1733458005134,0.2273143,97674.0,97673.0,0.20104073]
[1733458005341,0.61992787,97674.0,97673.0,0.18073905]
[1733458005527,0.48234584,97674.0,97673.0,0.09883505]
[1733458005730,0.80283181,97674.0,97673.0,0.09883505]
[1733458006112,0.90772826,97674.0,97673.0,0.09883505]
[1733458006349,0.90772826,97674.0,97670.0,6.7e-07]
[1733458006350,0.52255149,97671.0,97670.0,6.7e-07]
[1733458006554,0.94807053,97671.0,97670.0,6.7e-07]
[1733458006773,0.94807053,97671.0,97660.0,2.7e-07]
[1733458006774,0.3225523,97661.0,97660.0,2.7e-07]
[1733458006958,0.3225523,97661.0,97650.0,0.0017296]
[1733458006959,0.0225523,97655.0,97654.0,0.97952027]
[1733458007165,0.57937784,97655.0,97654.0,0.49030917]
[1733458007333,0.97753699,97655.0,97654.0,0.40834917]
[1733458007534,0.97753699,97655.0,97654.0,0.38786917]
[1733458008161,0.88054499,97655.0,97654.0,0.38786917]
[1733458008316,0.88054499,97655.0,97654.0,0.36738917]
[1733458008523,0.88054499,97655.0,97654.0,0.30594917]
[1733458008725,0.88054499,97655.0,97654.0,0.28546917]
[1733458009547,0.88054499,97655.0,97654.0,0.18306817]
[1733458009952,0.90107116,97655.0,97654.0,0.18306817]
[1733458010264,0.90107116,97655.0,97654.0,0.16258717]
[1733458010464,0.95107035,97655.0,97654.0,0.10114617]
[1733458010671,0.95107035,97655.0,97654.0,0.08066517]
[1733458011086,1.42576133,97655.0,97654.0,0.08066517]
[1733458011330,1.17367035,97655.0,97654.0,0.08066517]
[1733458011738,1.15111805,97655.0,97654.0,0.08066517]
[1733458011941,1.08059269,97655.0,97654.0,0.08066517]
[1733458012162,1.15936065,97655.0,97654.0,0.08066517]
[1733458012371,1.02160804,97655.0,97654.0,0.15896517]
[1733458012591,0.60983354,97655.0,97654.0,0.15896517]
[1733458016225,0.74707268,97655.0,97654.0,0.15896517]
[1733458016871,0.60983354,97655.0,97654.0,0.15896517]
[1733458017298,0.74707268,97655.0,97654.0,0.15896517]
[1733458017736,0.60983354,97655.0,97654.0,0.15896517]
[1733458018549,0.60983354,97655.0,97654.0,0.08066517]
[1733458018550,0.74707268,97655.0,97654.0,0.08066517]
[1733458018726,0.94740819,97655.0,97654.0,0.08066517]
[1733458018932,0.60983354,97655.0,97654.0,0.08066517]
[1733458019331,0.7012813,97655.0,97654.0,0.08066517]
[1733458019571,0.60983354,97655.0,97654.0,0.08066517]
[1733458019918,0.70127489,97655.0,97654.0,0.08066517]
[1733458020120,0.60983354,97655.0,97654.0,0.08066517]
[1733458020505,0.74700703,97655.0,97654.0,0.08066517]
[1733458020705,0.204806,97654.0,97650.0,0.0017296]
[1733458020911,0.29624281,97652.0,97650.0,0.0017296]
[1733458021118,0.10503154,97651.0,97650.0,0.0017296]
[1733458021317,0.19646937,97651.0,97650.0,0.0017296]
[1733458021547,0.10503154,97651.0,97650.0,0.0017296]
[1733458022241,0.204813,97650.0,97647.0,0.07772792]
[1733458022452,0.10503154,97649.0,97647.0,0.07772792]
[1733458023543,0.10503154,97649.0,97648.0,0.0274477]
[1733458023760,0.22876796,97664.0,97647.0,0.07772792]
[1733458023761,0.09143783,97663.0,97658.0,0.0274477]
[1733458023978,0.09143783,97663.0,97652.0,0.149304]
[1733458023979,0.204801,97656.0,97655.0,0.0274477]
[1733458024220,0.51463454,97656.0,97652.0,0.0469]
[1733458024454,0.204804,97654.0,97652.0,0.0469]
[1733458024737,0.40503154,97653.0,97652.0,0.0469]
[1733458024960,0.40503154,97653.0,97641.0,0.0469]
[1733458025188,0.204829,97642.0,97641.0,0.0469]
[1733458025401,0.30986054,97642.0,97641.0,0.1252]
[1733458026503,0.31003454,97642.0,97641.0,0.1252]
[1733458026751,0.66152049,97642.0,97634.0,0.0783]
[1733458026986,0.10503154,97641.0,97632.0,0.0469]
[1733458027208,0.10503154,97641.0,97630.0,0.0017292]
[1733458028346,0.26284817,97641.0,97630.0,0.0017292]
[1733458028608,0.12569625,97641.0,97630.0,0.0017292]
[1733458029073,0.26284817,97641.0,97630.0,0.0017292]
[1733458029297,0.12569625,97641.0,97630.0,0.0017292]
[1733458029547,0.26284817,97641.0,97630.0,0.0017292]
[1733458030821,0.204852,97631.0,97630.0,0.0017292]
[1733458031045,0.30988354,97631.0,97630.0,0.0017292]
[1733458031491,0.10503154,97631.0,97630.0,0.0017292]
[1733458031730,0.31317298,97640.0,97638.0,0.0783]
[1733458031731,0.29625552,97640.0,97638.0,0.0783]
[1733458031942,0.10503154,97639.0,97638.0,0.0783]
[1733458032400,0.10503154,97639.0,97638.0,0.1057477]
[1733458032609,0.000174,97642.0,97641.0,0.0274477]
[1733458032829,0.000174,97642.0,97641.0,0.2550627]
[1733458033049,0.29618652,97673.0,97663.0,0.0274477]
[1733458033256,0.204782,97665.0,97662.0,0.0274477]
[1733458033460,0.204782,97665.0,97663.0,0.0274477]
[1733458033666,0.204782,97665.0,97664.0,0.0274477]
[1733458033883,0.30981354,97665.0,97664.0,0.0274477]
[1733458034084,0.204785,97663.0,97660.0,0.1526477]
[1733458034289,0.204785,97663.0,97662.0,0.0274477]
[1733458034897,0.204785,97663.0,97661.0,0.0274477]
[1733458035541,0.204785,97663.0,97661.0,0.02802991]
[1733458035749,0.204785,97663.0,97662.0,0.0274477]
[1733458035972,0.30981654,97663.0,97662.0,0.0274477]
[1733458038200,0.30981654,97663.0,97661.0,0.00058221]
[1733458038435,0.10503154,97662.0,97661.0,0.00058221]
[1733458039291,0.10503154,97662.0,97661.0,0.02802991]
[1733458042475,0.10503154,97662.0,97661.0,0.00058221]
[1733458042883,0.10503154,97662.0,97661.0,0.02802991]
[1733458043349,0.10503154,97662.0,97661.0,0.00058221]
[1733458043562,0.10503154,97662.0,97661.0,0.02802991]
[1733458045773,0.10503154,97662.0,97661.0,0.00058221]
[1733458046238,0.204812,97651.0,97646.0,0.0274477]
[1733458046471,0.10503154,97650.0,97646.0,0.0274477]
[1733458046681,0.0916763,97657.0,97655.0,0.0751]
[1733458046893,0.0916763,97661.0,97658.0,0.0274477]
[1733458047123,0.10561328,97662.0,97661.0,0.0274477]
[1733458048069,0.00058174,97662.0,97661.0,0.0274477]
[1733458051146,0.10561328,97662.0,97657.0,0.0274477]
[1733458051376,0.10561328,97662.0,97653.0,0.0274477]
[1733458051377,0.10503154,97661.0,97653.0,0.0274477]
[1733458051595,0.10503154,97661.0,97648.0,0.0751]
[1733458051596,0.10503154,97661.0,97658.0,0.0274477]
[1733458052697,0.204792,97660.0,97658.0,0.0274477]
[1733458052910,0.00058174,97662.0,97658.0,0.0274477]
[1733458052911,0.10503154,97659.0,97658.0,0.0274477]
[1733458053133,0.00058174,97662.0,97648.0,0.0751]
[1733458053134,0.00058174,97662.0,97661.0,0.0274477]
[1733458053341,0.00058174,97662.0,97661.0,0.1051477]
[1733458054378,0.00058174,97662.0,97661.0,0.1545477]
[1733458054604,0.00058174,97662.0,97661.0,0.15557159]
[1733458056744,0.00058174,97662.0,97661.0,0.1545477]
[1733458057182,0.00058174,97662.0,97661.0,0.0274477]
[1733458058633,0.31040028,97662.0,97661.0,0.0274477]
[1733458058844,0.31040028,97662.0,97660.0,0.0291793]
[1733458059062,0.10503154,97661.0,97660.0,0.0291793]
[1733458059914,0.10503154,97661.0,97660.0,0.0017316]
[1733458060305,0.30982154,97661.0,97660.0,0.0017316]
[1733458061256,0.3909859,97661.0,97660.0,0.0017316]
[1733458061458,0.4826622,97661.0,97660.0,0.0017316]
[1733458061713,0.3909859,97661.0,97660.0,0.0017316]
[1733458062301,0.52850036,97661.0,97660.0,0.0017316]
[1733458062502,0.3909859,97661.0,97660.0,0.0017316]
[1733458062636,0.48267486,97661.0,97660.0,0.0017316]
[1733458062848,0.4015105,97661.0,97660.0,0.0017316]
[1733458063049,0.30982154,97661.0,97660.0,0.0017316]
[1733458063263,0.4015105,97661.0,97660.0,0.0017316]
[1733458063835,0.30982154,97661.0,97660.0,0.0017316]
[1733458064043,0.527336,97661.0,97660.0,0.0017316]
[1733458064214,0.38982154,97661.0,97660.0,0.0017316]
[1733458065472,0.64471646,97661.0,97660.0,0.0017316]
[1733458065646,0.64832534,97661.0,97660.0,0.0017316]
[1733458065863,0.00058174,97662.0,97661.0,0.0754477]
[1733458078569,0.20479,97661.0,97660.0,0.0017316]
[1733458078784,0.44772535,97661.0,97660.0,0.0017316]
[1733458078999,0.87842381,97661.0,97660.0,0.0017316]
[1733458079219,0.64920516,97661.0,97660.0,0.0017316]
[1733458079433,0.87905926,97661.0,97660.0,0.0017316]
[1733458079644,0.64920516,97661.0,97660.0,0.0017316]
[1733458079857,0.87904991,97661.0,97660.0,0.0017316]
[1733458080506,0.64920516,97661.0,97660.0,0.0017316]
[1733458081396,0.8790457,97661.0,97660.0,0.0017316]
[1733458081605,0.1969604,97661.0,97660.0,0.0291793]
[1733458081833,0.10503154,97661.0,97660.0,0.0291793]
[1733458082042,0.10503154,97661.0,97660.0,0.1068793]
[1733458085337,0.10503154,97661.0,97660.0,0.0291793]
[1733458085948,0.1969604,97661.0,97660.0,0.0291793]
[1733458086604,0.10503154,97661.0,97660.0,0.0291793]
[1733458086828,0.1969604,97661.0,97660.0,0.0291793]
[1733458090659,0.14997368,97661.0,97660.0,0.0017316]
[1733458091064,0.67423236,97661.0,97660.0,0.0017316]
[1733458091483,0.44439182,97661.0,97660.0,0.0017316]
[1733458092350,0.67423236,97661.0,97660.0,0.0017316]
[1733458093498,0.67423595,97661.0,97660.0,0.0017316]
[1733458094118,0.67425326,97661.0,97660.0,0.0017316]
[1733458094582,0.67423164,97661.0,97660.0,0.0017316]
[1733458094808,0.4443969,97661.0,97660.0,0.0017316]
[1733458095012,0.28889729,97661.0,97660.0,0.0017316]
[1733458095232,0.10503154,97661.0,97660.0,0.0017316]
[1733458095681,0.44438811,97661.0,97660.0,0.0017316]
[1733458096136,0.62825386,97661.0,97660.0,0.0017316]
[1733458096364,0.44438811,97661.0,97660.0,0.0017316]
[1733458096580,0.10503154,97661.0,97660.0,0.0017316]
[1733458097980,0.19695892,97661.0,97660.0,0.0017316]
[1733458098904,0.09192738,97661.0,97660.0,0.1596793]
[1733458099122,0.00058174,97662.0,97661.0,0.1298427]
[1733458099815,0.00058174,97662.0,97661.0,0.0274477]
[1733458105446,0.00058174,97662.0,97661.0,0.10947156]
[1733458105657,0.00058174,97662.0,97661.0,0.15897156]
[1733458105861,0.00058174,97662.0,97661.0,0.20897156]
[1733458106072,0.00058174,97662.0,97661.0,0.46297924]
[1733458106276,0.000866,97670.0,97669.0,0.3103337]
[1733458108835,0.000866,97670.0,97669.0,0.4603337]
[1733458109250,0.000866,97670.0,97669.0,0.61536524]
[1733458109454,0.0008659,97680.0,97669.0,0.61536524]
[1733458109455,0.0008659,97680.0,97679.0,0.4603237]
[1733458109670,0.0008659,97680.0,97679.0,0.63835524]
[1733458109877,0.0008655,97710.0,97699.0,0.2603027]
[1733458110968,0.0008655,97710.0,97699.0,0.28029465]
[1733458111394,0.00092366,97700.0,97699.0,0.28029465]
[1733458114680,0.00092366,97700.0,97699.0,0.2603027]
[1733458115721,0.00092366,97700.0,97699.0,0.4103027]
[1733458116508,0.00092366,97700.0,97699.0,0.5103027]
[1733458116674,0.0008655,97710.0,97709.0,0.4061917]
[1733458117043,0.0008655,97710.0,97709.0,0.61122324]
[1733458120072,0.0008655,97710.0,97709.0,0.1264]
[1733458120278,0.0008655,97710.0,97709.0,0.1538477]
[1733458120638,0.0008655,97710.0,97709.0,0.1264]
[1733458120773,0.0008655,97710.0,97709.0,0.1538477]
[1733458121187,0.0008655,97710.0,97709.0,0.15487093]
[1733458124648,0.0008655,97710.0,97709.0,0.16478606]
[1733458126358,0.204649,97729.0,97709.0,0.16478606]
[1733458126359,0.20200915,97729.0,97709.0,0.16478606]
[1733458126595,0.20200915,97729.0,97717.0,0.102336]
[1733458127504,0.20200915,97729.0,97718.0,0.00102323]
[1733458128558,0.20200915,97729.0,97712.0,0.102341]
[1733458128776,0.20200915,97729.0,97714.0,0.102339]
[1733458128986,0.20200915,97729.0,97715.0,0.00102323]
[1733458130268,0.0008649,97730.0,97729.0,0.0274477]
[1733458131509,0.00103931,97730.0,97729.0,0.0274477]
[1733458139981,0.00103931,97730.0,97729.0,0.10977083]
[1733458141274,0.00103931,97730.0,97729.0,0.09977083]
[1733458160560,0.00103931,97730.0,97729.0,0.01847083]
[1733458160764,0.00103931,97730.0,97720.0,0.01178516]
[1733458160765,0.18107085,97730.0,97725.0,0.0174477]
[1733458160970,0.204649,97728.0,97725.0,0.0174477]
[1733458161168,0.204653,97726.0,97720.0,0.001729]
[1733458161384,0.204664,97721.0,97720.0,0.001729]
[1733458162087,0.30969554,97721.0,97720.0,0.001729]
[1733458162295,0.38469554,97721.0,97720.0,0.001729]
[1733458162526,0.90655302,97721.0,97720.0,0.001729]
[1733458162730,0.72386311,97721.0,97720.0,0.001729]
[1733458162937,0.38469554,97721.0,97720.0,0.001729]
[1733458163584,0.52585794,97721.0,97720.0,0.001729]
[1733458163784,0.43399554,97721.0,97720.0,0.001729]
[1733458165306,0.52583112,97721.0,97720.0,0.001729]
[1733458165561,0.43399554,97721.0,97720.0,0.001729]
[1733458166871,0.47651942,97721.0,97720.0,0.001729]
[1733458167509,0.38469554,97721.0,97720.0,0.001729]
[1733458167729,0.10503154,97721.0,97720.0,0.001729]
[1733458169237,0.23363154,97721.0,97720.0,0.001729]
[1733458169438,0.6050423,97721.0,97720.0,0.001729]
[1733458169649,1.13340484,97721.0,97720.0,0.001729]
[1733458169873,0.9050423,97721.0,97720.0,0.001729]
[1733458170320,1.18034053,97721.0,97720.0,0.001729]
[1733458170558,1.20055132,97721.0,97720.0,0.001729]
[1733458170767,1.20053796,97721.0,97720.0,0.001729]
[1733458170973,1.16798566,97721.0,97720.0,0.001729]
[1733458171185,0.89270079,97721.0,97720.0,0.001729]
[1733458175606,1.12173548,97721.0,97720.0,0.001729]
[1733458175836,1.2266304,97721.0,97720.0,0.001729]
[1733458176277,0.99759571,97721.0,97720.0,0.001729]
[1733458176501,0.99759571,97721.0,97679.0,0.00999772]
[1733458176502,0.3,97693.0,97681.0,0.0174477]
[1733458176721,0.204746,97682.0,97675.0,0.0174477]
[1733458176976,0.10503154,97681.0,97670.0,0.0174477]
[1733458177193,0.48523154,97681.0,97670.0,0.0174477]
[1733458178046,0.48523154,97681.0,97680.0,0.00178796]
[1733458185414,0.40503154,97681.0,97680.0,0.00178796]
[1733458188688,0.10503154,97681.0,97680.0,0.00178796]
[1733458191242,0.10393839,97681.0,97680.0,0.00178796]
[1733458195751,0.504723,97693.0,97686.0,0.0174477]
[1733458195752,0.204723,97693.0,97686.0,0.0174477]
[1733458196109,0.30976054,97690.0,97689.0,0.0174477]
[1733458197402,0.204744,97683.0,97680.0,0.00178796]
[1733458197859,0.409488,97683.0,97680.0,0.00178796]
[1733458198318,0.204748,97681.0,97680.0,0.00178796]
[1733458198542,0.38487954,97681.0,97680.0,9.6e-07]
[1733458199238,0.38487954,97681.0,97680.0,0.00173036]
[1733458199921,0.50479,97661.0,97647.0,0.0174477]
[1733458200146,0.60982154,97661.0,97647.0,0.0174477]
[1733458203531,0.71385608,97661.0,97647.0,0.0174477]
[1733458204161,0.71385608,97661.0,97646.0,0.0494]
[1733458204162,0.60982154,97661.0,97646.0,0.0174477]
[1733458205656,0.73052154,97661.0,97646.0,0.0174477]
[1733458205866,0.96307303,97661.0,97660.0,6e-07]
[1733458206085,1.48304279,97661.0,97660.0,6e-07]
[1733458206293,1.52865394,97661.0,97660.0,6e-07]
[1733458206497,1.63354886,97661.0,97660.0,6e-07]
[1733458206923,0.504831,97641.0,97640.0,0.001732]
[1733458207156,0.60986254,97641.0,97640.0,0.001732]
[1733458208429,0.60986254,97641.0,97640.0,0.00231374]
[1733458211428,0.63014518,97641.0,97640.0,0.00231374]
[1733458214224,0.78014518,97641.0,97640.0,0.00231374]
[1733458215356,0.87159196,97641.0,97640.0,0.00231374]
[1733458215790,0.78014518,97641.0,97640.0,0.00231374]
[1733458216423,0.81269748,97641.0,97640.0,0.00231374]
[1733458216664,0.90414426,97641.0,97640.0,0.00231374]
[1733458216893,1.00903918,97641.0,97640.0,0.00231374]
[1733458217313,0.9664924,97641.0,97640.0,7.4e-07]
[1733458217531,0.504852,97631.0,97630.0,0.0017292]
[1733458217733,0.60988354,97631.0,97630.0,0.0017292]
[1733458225407,0.30988354,97631.0,97630.0,0.0017292]
[1733458225651,0.30988354,97631.0,97630.0,0.0495292]
[1733458225652,0.10503154,97631.0,97630.0,0.0495292]
[1733458225910,0.10503154,97631.0,97630.0,0.1290292]
[1733458225911,0.30988354,97631.0,97630.0,0.1290292]
[1733458226328,0.10503154,97631.0,97630.0,0.1290292]
[1733458226765,0.0008653,97640.0,97639.0,0.0174477]